Cogmind - Beta 11 @@@ ROGUE MODE // 2022.03.29 @ 23:36:28 Player: arcadio Result: Destroyed by YI-UF0 with YI-UF0's Doublenader Performance ------------- Evolutions (0) 0 Regions Visited (2) 400 Robots Destroyed (23) 115 Value Destroyed (586) 586 Prototype IDs (0) 0 Alien Tech Used (0) 0 Bonus (22) 22 TOTAL SCORE: 1123 Bonus ------- Follower Combat Kills 50 Friendly Fire -28 Cogmind --------- Core Integrity 0/250 Matter 280/300 Energy 80/100 System Corruption 0% Temperature Cool (0) Movement Core (400) Ox7 Location -10/Mines Parts ------- > --- POWER (1) -------- (None) > --- PROPULSION (2) --- (None) > --- UTILITY (2) ------ Large Storage Unit > --- WEAPON (2) ------- Grenade Launcher > --- INVENTORY (15) --- Aluminum Leg Aluminum Leg Wheel Wheel Improved Heat Sink Medium Matter Pod (100) Core Shielding Light Assault Rifle Mining Laser Signal Generator Peak State ------------ > --- POWER ------------ Light Nuclear Core > --- PROPULSION ------- Light Treads Light Treads > --- UTILITY ---------- Cooling System Large Storage Unit > --- WEAPON ----------- Particle Gun Particle Gun > --- INVENTORY -------- Ion Engine Light Ion Engine Light Treads Aluminum Leg Aluminum Leg Wheel Wheel Medium Matter Pod Light Assault Rifle Mining Laser [Rating: 13] Favorites ----------- Power Light Ion Engine Engine Light Ion Engine Power Core Light Nuclear Core Propulsion Light Treads Treads Light Treads Leg Aluminum Leg Utility Large Storage Unit Device Cooling System Storage Large Storage Unit Processor Signal Interpreter Weapon Particle Gun Energy Gun Particle Gun Ballistic Gun Assault Rifle Launcher Grenade Launcher Special Weapon Mining Laser Build | -11 -10 -10 ------- Run | Scr Mat Min Slots Evolved . | . . . Power . | . . . Propulsion . | . . . Utility . | . . . Weapon . | . . . Parts Attached 39 | 6 23 10 Power 6 | 1 3 2 Engine 5 | 1 2 2 Core 1 | . 1 . Reactor . | . . . Propulsion 9 | 2 5 2 Treads 7 | . 5 2 Leg 2 | 2 . . Wheel . | . . . Hover . | . . . Flight . | . . . Utility 7 | 1 5 1 Device 3 | . 2 1 Storage 3 | 1 2 . Processor 1 | . 1 . Hackware . | . . . Protection . | . . . Artifact . | . . . Weapon 17 | 2 10 5 Energy Gun 7 | . 5 2 Energy Cannon . | . . . Ballistic Gun 5 | 2 2 1 Ballistic Cannon . | . . . Launcher 2 | . . 2 Special Weapon 3 | . 3 . Impact Weapon . | . . . Slashing Weapon . | . . . Piercing Weapon . | . . . Special Melee Weapon . | . . . Unidentified Prototypes . | . . . Parts Lost 12 | . 1 11 Power 3 | . . 3 Propulsion 4 | . . 4 Utility 1 | . . 1 Weapon 4 | . 1 3 Highest Loss Streak 10 | . 1 10 To Critical Strikes . | . . . Average Slot Usage (%) 98 | . 99 98 Engine 11 | . 10 13 Core 2 | . 3 . Treads 27 | . 27 27 Device 9 | . 9 9 Storage 15 | . 15 14 Processor 3 | . 2 4 Energy Gun 22 | . 20 26 Ballistic Gun 2 | . 2 . Special Weapon 3 | . 4 . Naked Turns . | . . . Heaviest Build 34 | 14 34 33 Greatest Support 40 | 20 40 40 Greatest Overweight (x) 7 | . 1 7 Average Overweight (x) . | . . . Largest Inventory Capacity 15 | 8 15 15 Average Capacity 14 | 7 14 15 Most Carried 15 | 6 13 15 Average Carried 11 | 3 10 13 Final Capacity 15 | 8 15 15 Final Carried 12 | 6 12 10 Class Distribution -------------------- 100% | Mutant Dominant Class ---------------- Mutant | -10/Materials Mutant | -10/Mines Resources | -11 -10 -10 ----------- Run | Scr Mat Min Matter Collected 712 | 230 354 128 Remotely . | . . . Salvage Created 667 | . 417 250 Parts 39 | . 28 11 Haulers Intercepted 1 | . 1 . Recyclers Shooed . | . . . Parts Field Recycled . | . . . Retrieved Matter . | . . . Parts Self-Destructed . | . . . Prevented . | . . . Kills | -11 -10 -10 ------- Run | Scr Mat Min Combat Hostiles Destroyed 19 | . 13 6 Guns 16 | . 13 3 AOE 3 | . . 3 Classes Destroyed 6 | . 4 2 Worker 1 | . . 1 Hauler 1 | . 1 . Mechanic 1 | . . 1 Operator 1 | . 1 . Swarmer 6 | . 6 . Grunt 13 | . 7 6 Best Kill Streak 5 | . 3 5 Combat Bots Only 3 | . 3 3 Max Kills in Single Turn 3 | . 2 3 Gunslinging 1 | . 1 . Exploded 2 | . . 2 Melee . | . . . Uniques/NPCs Destroyed . | . . . Combat | -11 -10 -10 -------- Run | Scr Mat Min Damage Taken 1383 | . 492 891 Core 258 | . 103 155 Absorbed by Shields . | . . . Core Remaining (%) 100 | 100 . . Volleys Fired 62 | . 42 20 Largest 2 | . 2 2 Hottest 165 | . 165 130 Shots Fired 112 | . 76 36 Gun 100 | . 67 33 Cannon . | . . . Launcher 3 | . . 3 Special 9 | . 9 . Kinetic 20 | . 20 . Thermal 89 | . 56 33 Explosive 3 | . . 3 Electromagnetic . | . . . Robot Hit Streak 4 | . 4 4 Robot Miss Streak 7 | . 7 3 Penetration Max . | . . . Secondary Targets 2 | . 2 . Max Gunslinging Chain 1 | . 1 . Shots Hit Robots 51 | . 30 21 Core Hits 35 | . 20 15 Critical Kills . | . . . Critical Parts Destroyed . | . . . Critical Strikes 2 | . 1 1 Burn 2 | . 1 1 Melee Attacks . | . . . Impact . | . . . Slashing . | . . . Piercing . | . . . Sneak Attacks . | . . . Combat Hostiles . | . . . Follow-up Attacks . | . . . Damage Inflicted 1108 | . 524 584 Guns 764 | . 475 289 Cannons . | . . . Explosions 295 | . . 295 Melee . | . . . Ramming 25 | . 25 . Kinetic 86 | . 86 . Thermal 702 | . 413 289 Explosive 295 | . . 295 Electromagnetic . | . . . Impact . | . . . Slashing . | . . . Piercing . | . . . Highest Corruption . | . . . Average Corruption . | . . . Corruption Purged . | . . . Corruption Blocked . | . . . Overload Shots . | . . . Overflow Damage . | . . . Projectiles . | . . . Explosions . | . . . Melee . | . . . Knockbacks . | . . . Impact . | . . . Kinetic . | . . . Secondary . | . . . Self-Inflicted Damage 23 | . . 23 Shots 2 | . . 2 Rammed 3 | . 3 . Targets Rammed 3 | . 3 . Kicked . | . . . Crushed . | . . . Highest Temperature 305 | . 169 305 Average Temperature 52 | . 34 84 Received Heat Transfer 420 | . 186 234 Siege Activations . | . . . Robots Corrupted . | . . . Combat Hostiles . | . . . Parts Fried . | . . . Impact Corruptions . | . . . Robots Melted . | . . . Combat Hostiles . | . . . Parts Melted 2 | . 2 . Heat Transferred 1826 | . 1049 777 Parts Sabotaged . | . . . Parts Stolen . | . . . Parts Stripped . | . . . Power Chain Reactions . | . . . Missiles Intercepted . | . . . Alert | -11 -10 -10 ------- Run | Scr Mat Min Peak Influence 264 | . 187 264 Initial 22 | . . 22 Average 81 | . 79 91 Maximum Alert Level 1 | . . 1 Low Security (%) 95 | 100 100 84 Level 1 4 | . . 15 Level 2 . | . . . Level 3 . | . . . Level 4 . | . . . Level 5 . | . . . High Security . | . . . Max Security . | . . . Squads Dispatched 2 | . 1 1 Investigation . | . . . Extermination . | . . . Reinforcement 1 | . 1 . Assault 1 | . . 1 Garrison . | . . . Intercept . | . . . Searches Triggered . | . . . Construction Impeded . | . . . Haulers Reinforced . | . . . Active Scanning Responses . | . . . Cargo Convoy Interrupts . | . . . Stealth | -11 -10 -10 --------- Run | Scr Mat Min Distress Signals 3 | . 2 1 Communications Jammed . | . . . Distress Signals . | . . . Times Spotted 44 | . 31 13 Peak Tracking Total 4 | . 4 4 Tactical Retreats 2 | . 1 1 Traps | -11 -10 -10 ------- Run | Scr Mat Min Traps Triggered 4 | . 4 . Indirectly . | . . . Trap Hack Attempts . | . . . Triggered . | . . . Disarmed . | . . . Reprogrammed . | . . . Reused . | . . . Traps Extracted . | . . . Installed . | . . . Triggered . | . . . Machines | -11 -10 -10 ---------- Run | Scr Mat Min Machines Disabled . | . . . Max in Single Turn . | . . . Machines Sabotaged . | . . . Garrisons Compromised . | . . . Overloaded Fab Kills . | . . . Hacking | -11 -10 -10 --------- Run | Scr Mat Min Machines Accessed 6 | . 6 . Terminals 5 | . 5 . Fabricators . | . . . Repair Stations . | . . . Recycling Units 1 | . 1 . Scanalyzers . | . . . Garrison Access . | . . . Total Hacks 17 | . 17 . Successful 12 | . 12 . Failed 5 | . 5 . Catastrophic 3 | . 3 . Database Lockouts . | . . . Manual 15 | . 15 . Terminals 14 | . 14 . Fabricators . | . . . Repair Stations . | . . . Recycling Units 3 | . 3 . Scanalyzers . | . . . Garrison Access . | . . . Terminal Hacks 1 | . 1 . Alert Level 1 | . 1 . Fabricator Hacks . | . . . Repair Station Hacks . | . . . Recycling Unit Hacks 2 | . 2 . Report Inventory 1 | . 1 . Retrieve Components 1 | . 1 . Scanalyzer . | . . . Garrison Access Hacks . | . . . Unauthorized Hacks 8 | . 8 . Terminals 7 | . 7 . Track 2 | . 2 . Botnet 5 | . 5 . Fabricators . | . . . Repair Stations . | . . . Recycling Units 1 | . 1 . Reject 1 | . 1 . Scanalyzers . | . . . Garrison Access . | . . . Data Cores Recovered . | . . . Used . | . . . Hacking Detections 5 | . 5 . Full Trace Events . | . . . Feedback Events . | . . . Feedback Blocked . | . . . Robot Schematics Acquired . | . . . Robots Built . | . . . Authchips . | . . . Time . | . . . Total Robot Build Rating . | . . . Part Schematics Acquired . | . . . Parts Built . | . . . Authchips . | . . . Time . | . . . Total Part Build Rating . | . . . Parts Repaired . | . . . Time . | . . . Parts Recycled . | . . . Recycled Matter . | . . . Retrieved Matter . | . . . Retrieved Components 1 | . 1 . Parts Scanalyzed . | . . . Part Schematics Acquired . | . . . Parts Damaged . | . . . Bothacking | -11 -10 -10 ------------ Run | Scr Mat Min Used RIF Installer . | . . . Robots Hacked . | . . . Non-combat . | . . . Combat . | . . . Robot Hacks Applied . | . . . Relay Couplers Released . | . . . Fabnet Peak Effective % . | . . . Robots Rewired . | . . . Allies Hacked . | . . . Hacks Repelled . | . . . Allies | -11 -10 -10 -------- Run | Scr Mat Min Total Allies 1 | . . 1 Largest Group 1 | . . 1 Highest-Rated Group 31 | . . 31 Highest-Rated Ally 31 | . . 31 Total Orders . | . . . Ally Attacks 5 | . . 5 Total Damage 42 | . . 42 Kills 2 | . . 2 Allies Corrupted . | . . . Allies Melted . | . . . Intel | -11 -10 -10 ------- Run | Scr Mat Min Robot Analysis Total . | . . . Derelict Logs Recovered . | . . . Drone Launches . | . . . Drone Recoveries . | . . . Exploration | -11 -10 -10 ------------- Run | Scr Mat Min Turns Passed 2550 | 64 1705 781 Spaces Moved 1392 | 42 931 419 Core 3 | 1 . 2 Treads 1343 | . 926 417 Legs 46 | 41 5 . Wheels . | . . . Hover . | . . . Flight . | . . . Fastest Speed 50 | 50 120 160 Average Speed 158 | 118 159 161 Slowest Speed 400 | 120 240 400 Overloaded Moves . | . . . Propulsion Burnouts . | . . . Robots Hopped . | . . . Cave-ins Triggered . | . . . Exploration Rate (%) 61 | 3 96 86 Regions Visited 2 Branch Regions 1 Pre-discovered Areas . | . . . Known Exits Taken 1 | . 1 . Unknown Exits Taken 1 | 1 . . Scrap Searched 1 | . . 1 Spaces Dug 7 | . 7 . Terrain Destroyed 36 | . 8 28 Melee . | . . . Projectile 8 | . 8 . AOE 28 | . . 28 Terrain Rammed . | . . . Walls Destroyed . | . . . Machines Disabled . | . . . Actions | -11 -10 -10 --------- Run | Scr Mat Min Total 1589 | 53 1047 489 Wait 67 | . 33 34 Move 1390 | 41 930 419 Hop . | . . . Pick Up 18 | 6 8 4 Fast Attach 16 | 6 9 1 Attach 12 | . 5 7 Detach 3 | . 2 1 Swap 11 | . 9 2 Drop 7 | . 6 1 Fire 62 | . 42 20 Melee . | . . . Ram . | . . . Kick . | . . . Crush 3 | . 3 . Escape Stasis . | . . . Rewire . | . . . Trap . | . . . Miscellaneous . | . . . Route ------- -11/Scrapyard -10/Materials (discovered 5 exits: *Mat x3 / *Min x2) -10/Mines (discovered 1 exit: *Mat) History --------- Turn | Location | Event 30 | -11/Scrapyard | Discovered new exit (range 16) 65 | -11/Scrapyard | Entered Materials 302 | -10/Materials | Build established: Mutant 357 | -10/Materials | Discovered new exit (range 8) 620 | -10/Materials | Discovered new exit (range 13) 801 | -10/Materials | Discovered new exit (range 15) 1260 | -10/Materials | Discovered new exit (range 16) 1470 | -10/Materials | Discovered new exit (range 5) 1492 | -10/Materials | Identified exit to Materials 1729 | -10/Materials | Identified exit to Mines 1770 | -10/Materials | Entered Mines 1799 | -10/Mines | YI-UF0 nonchalantly dropped a Grenade Launcher on the ground 1932 | -10/Mines | Met a Derelict testing a Signal Generator 1949 | -10/Mines | Discovered exit to Materials (range 5) 1950 | -10/Mines | Found Signal Generator 2524 | -10/Mines | Core integrity fell below 50% 2547 | -10/Mines | Core integrity fell below 20% 2551 | -10/Mines | Destroyed by YI-UF0 with YI-UF0's Doublenader Last Messages --------------- 02367_ Found 24 Matter. 02370_ Acquired Core Shielding. 02520_ Particle Gun destroyed. 02528_ Machine disabled. 02530_ Y-45 Defender destroyed. 02530_ Particle Gun destroyed. 02534_ YI-UF0 mumbles something. 02534_ Lgt. Treads destroyed. 02534_ Ion Engine destroyed. 02534_ Particle Gun destroyed. 02536_ YI-UF0: "BLAM!" 02536_ Y-45 Defender destroyed. 02541_ The unstable cave ceiling collapses. 02542_ YI-UF0 mumbles something. 02542_ Cooling System destroyed. 02546_ YI-UF0 mumbles something. 02546_ Lgt. Treads destroyed. 02546_ Plasma Injector explodes. 02546_ Lgt. Ion Engine destroyed. 02546_ Lgt. Treads destroyed. Map ----- +----------------------------------------------------+ | ??????????????????????# % | | ??????????????????????# * | | ??????????????????????? =% | | ???????????????????????? !# | | ???????????????????????## ## | | ???????????????????#???# # | | ??????????????????? ????# = # | | ??????????????????# #???# | | ??????????????????# #???# | | ??????????????????# #???## # | | ??????????????????# #????# | | ???############???# #?#### | | ??## # # ###?# #?# | | ??# # ### #?# ####### | | ??#" ### #?????# | | ??#| % #?????# | | ??#[! #######????# | | ??#" #???????????# | | ??## g####??????????# | | ??## #?????????????# | | ??# #????????????# | | ??## #???????????# # | | ??# #???????????# #? | | ??# ##???????????## ?# | | ???# ;; ;##????????????###?? | | ???# @ ;#????????????????# | | ??# ;#????????????????# | | ??# ##????????????????# | | ??## #?????????????????# | | ???# #?????????????????? | | ???# #?????????????????# | | ???# #?????????????????# | | ???##########?????????????????# | | ??????????????????????????????# | | ??????????????????????????????? | | ??????????????????????????????? | | ??????????????????????????????? | | ??????????????????????????????? | | ??????????????????????????????? | | ??????????????????????????????? | | ??????????????????????????????? | | ??????????????????????????????? | | | | | | | | | | | | | | | | | +----------------------------------------------------+ Best States ------------- Heat Dissipation 47 Energy Generation 14 Energy Capacity 250 Matter Stores 300 Matter Capacity 400 Sight Range 16 Terrain Scan Density 10 Evasion (%) 55 Recoil Reduction 2 Item Schematics ----------------- None Robot Schematics ------------------ None Fabricated ------------ Nothing Alien Tech Used ----------------- None Achievements -------------- None Challenges ------------ None Game ------ Seed FissionTransmissionDetonator Manual? 0 Play Time 00:35:03 Cumulative 33.0 hours Start 2022.03.29 @ 19:22:37 End 2022.03.29 @ 23:36:28 Sessions 4 Manual Loads 0 Difficulty Rogue Special Mode None Game No. 30 Rogue 30 Adventurer 0 Explorer 0 Win Type - Total 0 Types 0/0/0/0/0/0/0/0/0 Lore% 24 Gallery% 31 Achievement% 26 Wizard Run 0 Options --------- ASCII 0 Keyboard 0 Movement Numpad Keybinds 0 Fullscreen 2 Font 18/SmallcapsGlow Map View 76x50 Tactical HUD 1 Map Filters NONE Filters NONE Steam 1 RUN: 13f7e67f-aef5-4d90-93ca-7ab9e269d2c7